[Event "*** Titled Tuesday Blitz"]
[Site "Chess.com"]
[Date "2019.08.06"]
[Round "3"]
[White "XiaoKangZhong"]
[Black "rst2003"]
[Result "0-1"]
[WhiteElo "2361"]
[BlackElo "2255"]
[TimeControl "180+2"]
[EndTime "13:36:44 PDT"]
[Termination "rst2003 won by resignation"]

1. e4 {[%clk 0:03:00.3]} 1... c5 {[%clk 0:02:59.9]} 2. c3 {[%clk 0:02:56.4]}
2... Nf6 {[%clk 0:03:00.2]} 3. e5 {[%clk 0:02:47.4]} 3... Nd5 {[%clk 0:02:51]}
4. d4 {[%clk 0:02:39.5]} 4... cxd4 {[%clk 0:02:52.9]} 5. Nf3 {[%clk 0:02:38.6]}
5... Nc6 {[%clk 0:02:52.8]} 6. cxd4 {[%clk 0:02:37]} 6... d6 {[%clk 0:02:54.3]}
7. exd6 {[%clk 0:02:03.4]} 7... Qxd6 {[%clk 0:02:53.8]} 8. Nc3 {[%clk
0:02:04.2]} 8... Bg4 {[%clk 0:02:51.4]} 9. Be2 {[%clk 0:02:02.9]} 9... e6 {[%clk
0:02:49.6]} 10. O-O {[%clk 0:02:02.7]} 10... Be7 {[%clk 0:02:49.3]} 11. h3
{[%clk 0:01:58.1]} 11... Bh5 {[%clk 0:02:23.5]} 12. Be3 {[%clk 0:01:54.3]} 12...
O-O {[%clk 0:02:23.5]} 13. Ne4 {[%clk 0:01:50]} 13... Qd7 {[%clk 0:02:22.9]} 14.
Ne5 {[%clk 0:01:48.2]} 14... Nxe5 {[%clk 0:02:06]} 15. dxe5 {[%clk 0:01:50.1]}
15... Bxe2 {[%clk 0:02:03.3]} 16. Qxe2 {[%clk 0:01:50.9]} 16... Nxe3 {[%clk
0:02:04.5]} 17. Qxe3 {[%clk 0:01:50.9]} 17... Rfd8 {[%clk 0:02:02.1]} 18. Qg3
{[%clk 0:01:43.8]} 18... Qd4 {[%clk 0:01:48.6]} 19. Qf4 {[%clk 0:01:23.9]} 19...
Rd5 {[%clk 0:01:37.6]} 20. Rfe1 {[%clk 0:00:56.4]} 20... Qxe5 {[%clk 0:01:19.6]}
21. Qxe5 {[%clk 0:00:50.5]} 21... Rxe5 {[%clk 0:01:21.5]} 22. f4 {[%clk
0:00:48.3]} 22... Rb5 {[%clk 0:01:12.7]} 23. b3 {[%clk 0:00:48.3]} 23... Rd8
{[%clk 0:01:04.9]} 24. Rac1 {[%clk 0:00:46.9]} 24... Rbd5 {[%clk 0:01:06.3]} 25.
Rc7 {[%clk 0:00:45.4]} 25... R5d7 {[%clk 0:01:07.6]} 26. Rec1 {[%clk 0:00:45.5]}
26... h6 {[%clk 0:00:49.6]} 27. Kf2 {[%clk 0:00:42.9]} 27... f5 {[%clk
0:00:45.2]} 28. Ng3 {[%clk 0:00:30.7]} 28... Bd6 {[%clk 0:00:45]} 29. Rxd7
{[%clk 0:00:30]} 29... Rxd7 {[%clk 0:00:45.9]} 30. Rc8+ {[%clk 0:00:31.5]} 30...
Kf7 {[%clk 0:00:46.5]} 31. Kf3 {[%clk 0:00:32.9]} 31... Rc7 {[%clk 0:00:46.9]}
32. Rd8 {[%clk 0:00:32.4]} 32... Rc3+ {[%clk 0:00:46.3]} 33. Kf2 {[%clk
0:00:33.2]} 33... Bxf4 {[%clk 0:00:47.7]} 34. Ne2 {[%clk 0:00:34.6]} 34... Be3+
{[%clk 0:00:45.5]} 35. Ke1 {[%clk 0:00:24.7]} 35... Rc7 {[%clk 0:00:45.1]} 36.
Rd3 {[%clk 0:00:25.3]} 36... Bb6 {[%clk 0:00:45]} 37. Kd2 {[%clk 0:00:25.5]}
37... Ke7 {[%clk 0:00:46]} 38. Nc3 {[%clk 0:00:24.5]} 38... Rd7 {[%clk
0:00:47.2]} 39. Rxd7+ {[%clk 0:00:24.1]} 39... Kxd7 {[%clk 0:00:49.1]} 40. Kd3
{[%clk 0:00:25.6]} 40... e5 {[%clk 0:00:49.6]} 41. Ne2 {[%clk 0:00:25.7]} 41...
Ke6 {[%clk 0:00:50.7]} 42. g3 {[%clk 0:00:26]} 42... g5 {[%clk 0:00:50.4]} 43.
Nc3 {[%clk 0:00:24.3]} 43... e4+ {[%clk 0:00:50.4]} 44. Ke2 {[%clk 0:00:25]}
44... Ke5 {[%clk 0:00:51.5]} 45. Nb5 {[%clk 0:00:25.2]} 45... f4 {[%clk
0:00:52.3]} 46. gxf4+ {[%clk 0:00:25.9]} 46... gxf4 {[%clk 0:00:54.2]} 47. Na3
{[%clk 0:00:27.3]} 47... f3+ {[%clk 0:00:55]} 48. Kf1 {[%clk 0:00:28.2]} 48...
Kf4 {[%clk 0:00:55.5]} 49. Nc4 {[%clk 0:00:29]} 49... e3 {[%clk 0:00:56.2]} 50.
Ke1 {[%clk 0:00:29.7]} 50... Kg3 {[%clk 0:00:56.7]} 51. Ne5 {[%clk 0:00:28.4]}
51... Kg2 {[%clk 0:00:56.6]} 52. Nd3 {[%clk 0:00:21.4]} 52... f2+ {[%clk
0:00:56.1]} 53. Nxf2 {[%clk 0:00:22.4]} 53... exf2+ {[%clk 0:00:57.2]} 54. Ke2
{[%clk 0:00:23.8]} 54... f1=Q+ {[%clk 0:00:59.1]} 0-1

[Event "*** Titled Tuesday Blitz"]
[Site "Chess.com"]
[Date "2019.08.06"]
[Round "3"]
[White "Keithonsky"]
[Black "AlexanderKing"]
[Result "1-0"]
[WhiteElo "2462"]
[BlackElo "2659"]
[TimeControl "180+2"]
[EndTime "13:36:45 PDT"]
[Termination "Keithonsky won on time"]

1. d4 {[%clk 0:03:00.2]} 1... d5 {[%clk 0:03:00.6]} 2. c4 {[%clk 0:03:01.2]}
2... e6 {[%clk 0:03:01.8]} 3. Nf3 {[%clk 0:03:03.1]} 3... c5 {[%clk 0:03:03.1]}
4. g3 {[%clk 0:03:05]} 4... Nf6 {[%clk 0:03:04.2]} 5. Bg2 {[%clk 0:03:06.3]}
5... Nc6 {[%clk 0:03:05.9]} 6. O-O {[%clk 0:03:07.8]} 6... Be7 {[%clk
0:03:07.4]} 7. cxd5 {[%clk 0:03:09.4]} 7... exd5 {[%clk 0:03:08.5]} 8. Nc3
{[%clk 0:03:11]} 8... O-O {[%clk 0:03:09.7]} 9. Bf4 {[%clk 0:03:12.1]} 9... Bg4
{[%clk 0:03:07.7]} 10. Ne5 {[%clk 0:03:11.1]} 10... cxd4 {[%clk 0:02:49.3]} 11.
Nxg4 {[%clk 0:02:35.3]} 11... dxc3 {[%clk 0:02:49.7]} 12. Nxf6+ {[%clk
0:02:31.9]} 12... Bxf6 {[%clk 0:02:51.6]} 13. bxc3 {[%clk 0:02:33.8]} 13... Bxc3
{[%clk 0:02:40.6]} 14. Rb1 {[%clk 0:02:34.6]} 14... Qe7 {[%clk 0:01:13]} 15.
Qxd5 {[%clk 0:02:19.1]} 15... Rad8 {[%clk 0:01:04.6]} 16. Qb3 {[%clk 0:02:09]}
16... Nd4 {[%clk 0:01:05.1]} 17. Qxb7 {[%clk 0:01:50.1]} 17... Nxe2+ {[%clk
0:01:04.9]} 18. Kh1 {[%clk 0:01:51.5]} 18... Qxb7 {[%clk 0:01:02.6]} 19. Rxb7
{[%clk 0:01:49.4]} 19... Nxf4 {[%clk 0:01:04.5]} 20. gxf4 {[%clk 0:01:51.3]}
20... Bd4 {[%clk 0:01:04.8]} 21. Bc6 {[%clk 0:01:41.4]} 21... g6 {[%clk
0:00:59]} 22. Kg2 {[%clk 0:01:41.2]} 22... Rd6 {[%clk 0:00:58.1]} 23. Ba4 {[%clk
0:01:32.2]} 23... Bb6 {[%clk 0:00:54.1]} 24. Rd1 {[%clk 0:01:30.6]} 24... Rfd8
{[%clk 0:00:37.7]} 25. Rxd6 {[%clk 0:01:30.9]} 25... Rxd6 {[%clk 0:00:39.6]} 26.
Bb3 {[%clk 0:01:32.7]} 26... Rf6 {[%clk 0:00:41]} 27. Kg3 {[%clk 0:01:32.4]}
27... Kg7 {[%clk 0:00:29.1]} 28. f3 {[%clk 0:01:32.5]} 28... Be3 {[%clk
0:00:27.1]} 29. Re7 {[%clk 0:01:22]} 29... Bxf4+ {[%clk 0:00:27]} 30. Kg2 {[%clk
0:01:22]} 30... a5 {[%clk 0:00:24.7]} 31. Rd7 {[%clk 0:01:10]} 31... Be5 {[%clk
0:00:04.2]} 32. Rd5 {[%clk 0:01:01.3]} 32... Bc3 {[%clk 0:00:05.2]} 33. Rd7
{[%clk 0:01:03.1]} 33... Bb4 {[%clk 0:00:06.2]} 34. Kf2 {[%clk 0:00:59.9]} 34...
h5 {[%clk 0:00:05.2]} 35. Ke3 {[%clk 0:00:58.3]} 35... Bc3 {[%clk 0:00:04.2]}
36. Ke4 {[%clk 0:00:58.6]} 36... Bb4 {[%clk 0:00:04.7]} 37. Rc7 {[%clk
0:00:58.5]} 37... Bd6 {[%clk 0:00:03.8]} 38. Ra7 {[%clk 0:00:55.8]} 38... Bxh2
{[%clk 0:00:04.5]} 39. Rxa5 {[%clk 0:00:54.2]} 39... h4 {[%clk 0:00:04.8]} 40.
Ke3 {[%clk 0:00:46.3]} 40... Bg1+ {[%clk 0:00:03.3]} 41. Ke2 {[%clk 0:00:43.4]}
1-0

[Event "*** Titled Tuesday Blitz"]
[Site "Chess.com"]
[Date "2019.08.06"]
[Round "3"]
[White "MFguimaraes"]
[Black "NMZanette"]
[Result "1-0"]
[WhiteElo "2276"]
[BlackElo "2340"]
[TimeControl "180+2"]
[EndTime "13:36:46 PDT"]
[Termination "MFguimaraes won by resignation"]

1. e4 {[%clk 0:03:01.9]} 1... e5 {[%clk 0:03:01]} 2. Bc4 {[%clk 0:02:59.7]} 2...
Nf6 {[%clk 0:03:01.3]} 3. Nc3 {[%clk 0:03:00.2]} 3... Nc6 {[%clk 0:02:58.3]} 4.
d3 {[%clk 0:02:53.1]} 4... Na5 {[%clk 0:02:48.8]} 5. Nf3 {[%clk 0:02:51.2]} 5...
Nxc4 {[%clk 0:02:48.6]} 6. dxc4 {[%clk 0:02:53.1]} 6... d6 {[%clk 0:02:49.5]} 7.
O-O {[%clk 0:02:53]} 7... Be7 {[%clk 0:02:50.5]} 8. Re1 {[%clk 0:02:51]} 8... c6
{[%clk 0:02:50.9]} 9. b3 {[%clk 0:02:51.2]} 9... Qa5 {[%clk 0:02:45.3]} 10. Bd2
{[%clk 0:02:49.3]} 10... Qc7 {[%clk 0:02:46.1]} 11. a4 {[%clk 0:02:47.9]} 11...
a5 {[%clk 0:02:46.1]} 12. Bc1 {[%clk 0:02:43.8]} 12... O-O {[%clk 0:02:44.7]}
13. Ba3 {[%clk 0:02:45]} 13... g6 {[%clk 0:02:34.5]} 14. Qd3 {[%clk 0:02:45.3]}
14... Nh5 {[%clk 0:02:34.1]} 15. Rad1 {[%clk 0:02:44.8]} 15... Nf4 {[%clk
0:02:34.3]} 16. Qd2 {[%clk 0:02:41.6]} 16... Rd8 {[%clk 0:02:22.4]} 17. Ne2
{[%clk 0:02:41.6]} 17... Ne6 {[%clk 0:02:19.3]} 18. Qh6 {[%clk 0:02:34.6]} 18...
Bf8 {[%clk 0:02:17.9]} 19. Qh4 {[%clk 0:02:33.3]} 19... Be7 {[%clk 0:02:00.1]}
20. Qh6 {[%clk 0:02:31]} 20... b6 {[%clk 0:01:58.4]} 21. Rd2 {[%clk 0:02:27.1]}
21... Ba6 {[%clk 0:01:58.3]} 22. Red1 {[%clk 0:02:27.3]} 22... c5 {[%clk
0:01:46]} 23. Nc3 {[%clk 0:02:26.3]} 23... Nd4 {[%clk 0:01:47]} 24. Nxd4 {[%clk
0:02:20.1]} 24... cxd4 {[%clk 0:01:48.1]} 25. Nd5 {[%clk 0:02:21.1]} 25... Qa7
{[%clk 0:01:47.7]} 26. c3 {[%clk 0:02:17.6]} 26... dxc3 {[%clk 0:01:39]} 27.
Nxc3 {[%clk 0:02:16.9]} 27... Bf8 {[%clk 0:01:36.4]} 28. Qe3 {[%clk 0:02:08.8]}
28... Qc7 {[%clk 0:01:34.8]} 29. Nd5 {[%clk 0:02:07.5]} 29... Qc6 {[%clk
0:01:27.7]} 30. Nxb6 {[%clk 0:01:59.6]} 30... Rab8 {[%clk 0:01:26.5]} 31. Nd5
{[%clk 0:02:00.9]} 31... Kg7 {[%clk 0:01:24.8]} 32. Rd3 {[%clk 0:02:01.2]} 32...
Bc8 {[%clk 0:01:24.4]} 33. Qg5 {[%clk 0:01:55.3]} 33... Be6 {[%clk 0:01:15.1]}
34. Qf6+ {[%clk 0:01:55.7]} 34... Kg8 {[%clk 0:01:16.1]} 35. Bc1 {[%clk
0:01:56]} 35... Re8 {[%clk 0:01:08.6]} 36. Qf3 {[%clk 0:01:49.7]} 36... Bxd5
{[%clk 0:01:05.6]} 37. Rxd5 {[%clk 0:01:51.4]} 37... Qb6 {[%clk 0:00:58]} 38.
Rb5 {[%clk 0:01:51.4]} 38... Qc6 {[%clk 0:00:59.5]} 39. Rxa5 {[%clk 0:01:47.3]}
39... f5 {[%clk 0:00:59.3]} 40. exf5 {[%clk 0:01:46.6]} 40... Qxf3 {[%clk
0:01:00.3]} 41. gxf3 {[%clk 0:01:47.6]} 41... gxf5 {[%clk 0:01:01.9]} 42. Rb5
{[%clk 0:01:43]} 42... Rbc8 {[%clk 0:01:00]} 43. Ba3 {[%clk 0:01:43.7]} 43...
Re6 {[%clk 0:00:57.6]} 44. Rb7 {[%clk 0:01:41.6]} 44... Rg6+ {[%clk 0:00:58.4]}
45. Kf1 {[%clk 0:01:42.5]} 45... e4 {[%clk 0:00:57.5]} 46. Ke2 {[%clk
0:01:39.4]} 46... Re8 {[%clk 0:00:56.3]} 47. fxe4 {[%clk 0:01:38.2]} 47... Rxe4+
{[%clk 0:00:56.6]} 48. Kf1 {[%clk 0:01:36.8]} 48... Reg4 {[%clk 0:00:56.5]} 49.
a5 {[%clk 0:01:31.2]} 49... Rg1+ {[%clk 0:00:51.3]} 50. Ke2 {[%clk 0:01:31.7]}
50... Re6+ {[%clk 0:00:52.8]} 51. Kd2 {[%clk 0:01:27.8]} 51... Bh6+ {[%clk
0:00:53.7]} 52. Kc2 {[%clk 0:01:29.3]} 52... Re2+ {[%clk 0:00:51.4]} 53. Kd3
{[%clk 0:01:30]} 53... Rxd1+ {[%clk 0:00:39.1]} 54. Kxe2 {[%clk 0:01:31]} 54...
Rd2+ {[%clk 0:00:39.6]} 55. Kf3 {[%clk 0:01:25.6]} 55... Rd3+ {[%clk 0:00:38.9]}
56. Ke2 {[%clk 0:01:26.8]} 56... Rd2+ {[%clk 0:00:40.1]} 57. Ke1 {[%clk
0:01:28.3]} 57... Ra2 {[%clk 0:00:41.3]} 58. Bxd6 {[%clk 0:01:28.3]} 58... Rxa5
{[%clk 0:00:41.4]} 59. f4 {[%clk 0:01:26.1]} 59... Ra2 {[%clk 0:00:40]} 60. c5
{[%clk 0:01:22]} 60... Rxh2 {[%clk 0:00:41]} 61. c6 {[%clk 0:01:23.4]} 61... Rc2
{[%clk 0:00:38.8]} 62. c7 {[%clk 0:01:24.6]} 62... Bf8 {[%clk 0:00:38.5]} 63.
Rb8 {[%clk 0:01:24.8]} 1-0

[Event "*** Titled Tuesday Blitz"]
[Site "Chess.com"]
[Date "2019.08.06"]
[Round "3"]
[White "platy3"]
[Black "Atakishiyev04"]
[Result "1/2-1/2"]
[WhiteElo "2873"]
[BlackElo "2619"]
[TimeControl "180+2"]
[EndTime "13:36:50 PDT"]
[Termination "Game drawn by agreement"]

1. e4 {[%clk 0:03:00]} 1... e6 {[%clk 0:03:00.5]} 2. d4 {[%clk 0:02:58.4]} 2...
d5 {[%clk 0:03:02]} 3. Nd2 {[%clk 0:02:59.9]} 3... Nf6 {[%clk 0:03:02.7]} 4. e5
{[%clk 0:03:01.1]} 4... Nfd7 {[%clk 0:03:04.3]} 5. Bd3 {[%clk 0:03:02.7]} 5...
c5 {[%clk 0:03:05.6]} 6. c3 {[%clk 0:03:04.4]} 6... Nc6 {[%clk 0:03:06.9]} 7.
Ne2 {[%clk 0:03:06]} 7... cxd4 {[%clk 0:03:08]} 8. cxd4 {[%clk 0:03:07.9]} 8...
f6 {[%clk 0:03:09.4]} 9. exf6 {[%clk 0:03:09.5]} 9... Nxf6 {[%clk 0:03:11.3]}
10. Nf3 {[%clk 0:03:11.1]} 10... Qc7 {[%clk 0:03:12.4]} 11. O-O {[%clk
0:03:10.8]} 11... Bd6 {[%clk 0:03:13.9]} 12. Bg5 {[%clk 0:03:12.2]} 12... O-O
{[%clk 0:03:15.2]} 13. Bh4 {[%clk 0:03:13.7]} 13... h6 {[%clk 0:03:15.8]} 14.
Bg3 {[%clk 0:03:08.5]} 14... Bd7 {[%clk 0:02:45.4]} 15. a3 {[%clk 0:03:07.2]}
15... Rae8 {[%clk 0:02:45.3]} 16. b4 {[%clk 0:03:06.8]} 16... a6 {[%clk
0:02:45.7]} 17. Rc1 {[%clk 0:03:07]} 17... Qb8 {[%clk 0:02:35.2]} 18. Bg6 {[%clk
0:02:55.4]} 18... Re7 {[%clk 0:02:29.5]} 19. Nc3 {[%clk 0:02:48.7]} 19... Be8
{[%clk 0:02:25.8]} 20. Bxe8 {[%clk 0:02:41.9]} 20... Rexe8 {[%clk 0:02:22.8]}
21. Re1 {[%clk 0:02:40.8]} 21... Bxg3 {[%clk 0:02:07]} 22. hxg3 {[%clk
0:02:41.5]} 22... Ng4 {[%clk 0:01:50.4]} 23. Rc2 {[%clk 0:02:41.9]} 23... Qd6
{[%clk 0:01:46.6]} 24. Nh4 {[%clk 0:02:38.3]} 24... Rxf2 {[%clk 0:01:12]} 25.
Qxg4 {[%clk 0:01:58.1]} 25... Rxc2 {[%clk 0:01:10.8]} 26. Nf5 {[%clk 0:01:59.5]}
26... exf5 {[%clk 0:00:48.8]} 27. Rxe8+ {[%clk 0:01:57.7]} 27... Kf7 {[%clk
0:00:50.2]} 28. Qxf5+ {[%clk 0:01:54.7]} 28... Kxe8 {[%clk 0:00:51]} 29. Qxc2
{[%clk 0:01:56.2]} 29... Qxg3 {[%clk 0:00:49.8]} 30. Qe2+ {[%clk 0:01:49.4]}
30... Kd8 {[%clk 0:00:22.4]} 31. Nxd5 {[%clk 0:01:50.1]} 31... Qxa3 {[%clk
0:00:21.4]} 32. Qe6 {[%clk 0:00:55.2]} 32... Qc1+ {[%clk 0:00:14.6]} 33. Kh2
{[%clk 0:00:55.6]} 33... g5 {[%clk 0:00:08.1]} 34. Qd6+ {[%clk 0:00:54.7]} 34...
Ke8 {[%clk 0:00:09.1]} 35. Qe6+ {[%clk 0:00:55.6]} 35... Kd8 {[%clk 0:00:09.7]}
36. Qxh6 {[%clk 0:00:55.4]} 36... Kd7 {[%clk 0:00:06.9]} 37. Nb6+ {[%clk
0:00:48.4]} 37... Kc7 {[%clk 0:00:06.1]} 38. Nd5+ {[%clk 0:00:49.8]} 38... Kd7
{[%clk 0:00:07.4]} 39. Qf6 {[%clk 0:00:47.2]} 39... Qd2 {[%clk 0:00:05.7]}
1/2-1/2

[Event "*** Titled Tuesday Blitz"]
[Site "Chess.com"]
[Date "2019.08.06"]
[Round "3"]
[White "bluejay1897"]
[Black "RandomOracle"]
[Result "0-1"]
[WhiteElo "2277"]
[BlackElo "2206"]
[TimeControl "180+2"]
[EndTime "13:36:51 PDT"]
[Termination "RandomOracle won by resignation"]

1. Nf3 {[%clk 0:03:01.9]} 1... d5 {[%clk 0:02:57.7]} 2. g3 {[%clk 0:03:01.1]}
2... Nf6 {[%clk 0:02:57.8]} 3. Bg2 {[%clk 0:03:01.2]} 3... g6 {[%clk 0:02:55.4]}
4. b3 {[%clk 0:03:01.6]} 4... Bg7 {[%clk 0:02:56]} 5. Bb2 {[%clk 0:03:03.1]}
5... O-O {[%clk 0:02:57.1]} 6. O-O {[%clk 0:03:03.9]} 6... c5 {[%clk 0:02:58]}
7. d4 {[%clk 0:03:03.7]} 7... cxd4 {[%clk 0:02:54.6]} 8. Bxd4 {[%clk 0:03:01.7]}
8... Nc6 {[%clk 0:02:55.2]} 9. Bb2 {[%clk 0:03:02.3]} 9... Re8 {[%clk
0:02:55.5]} 10. Ne5 {[%clk 0:02:56]} 10... Qc7 {[%clk 0:02:37.4]} 11. Nxc6
{[%clk 0:02:53.4]} 11... bxc6 {[%clk 0:02:38.1]} 12. Nd2 {[%clk 0:02:51.8]}
12... e5 {[%clk 0:02:36.2]} 13. c4 {[%clk 0:02:49.8]} 13... d4 {[%clk
0:02:31.6]} 14. c5 {[%clk 0:02:39.2]} 14... Be6 {[%clk 0:02:18.6]} 15. Rc1
{[%clk 0:02:33.8]} 15... Nd7 {[%clk 0:02:01.9]} 16. Re1 {[%clk 0:02:17.4]} 16...
f5 {[%clk 0:02:00.6]} 17. e3 {[%clk 0:02:15.1]} 17... dxe3 {[%clk 0:01:51.2]}
18. Rxe3 {[%clk 0:02:15]} 18... Rad8 {[%clk 0:01:45.2]} 19. Qc2 {[%clk
0:02:13.1]} 19... e4 {[%clk 0:01:41.6]} 20. Bxg7 {[%clk 0:02:12.6]} 20... Kxg7
{[%clk 0:01:43.1]} 21. Bf1 {[%clk 0:01:59.1]} 21... Qe5 {[%clk 0:01:29.5]} 22.
b4 {[%clk 0:01:27.2]} 22... Nf6 {[%clk 0:01:23.5]} 23. Bc4 {[%clk 0:01:19.8]}
23... Nd5 {[%clk 0:01:18.7]} 24. Bxd5 {[%clk 0:01:16.9]} 24... cxd5 {[%clk
0:01:17.3]} 25. c6 {[%clk 0:01:12.5]} 25... d4 {[%clk 0:01:16.8]} 26. Ree1
{[%clk 0:01:10.8]} 26... Re7 {[%clk 0:01:04.1]} 27. Nxe4 {[%clk 0:00:58.6]}
27... fxe4 {[%clk 0:00:57]} 28. Rxe4 {[%clk 0:00:59.4]} 28... Qd6 {[%clk
0:00:30.3]} 29. Rce1 {[%clk 0:00:50.5]} 29... Rde8 {[%clk 0:00:20.9]} 30. Qe2
{[%clk 0:00:46.1]} 30... d3 {[%clk 0:00:17.5]} 31. Qb2+ {[%clk 0:00:46.4]} 31...
Kf7 {[%clk 0:00:18.1]} 32. Rf4+ {[%clk 0:00:46.8]} 32... Kg8 {[%clk 0:00:19]}
33. b5 {[%clk 0:00:39.5]} 33... Bf7 {[%clk 0:00:17.6]} 34. Rxe7 {[%clk 0:00:36]}
34... Qxe7 {[%clk 0:00:18.7]} 35. h4 {[%clk 0:00:26]} 35... Bd5 {[%clk
0:00:16.6]} 36. Kh2 {[%clk 0:00:20.8]} 36... Qe1 {[%clk 0:00:17.2]} 37. f3
{[%clk 0:00:16.1]} 37... Re2+ {[%clk 0:00:17.3]} 38. Kh3 {[%clk 0:00:16.6]}
38... Rxb2 {[%clk 0:00:17.2]} 39. c7 {[%clk 0:00:18]} 39... Rc2 {[%clk
0:00:15.3]} 0-1

[Event "*** Titled Tuesday Blitz"]
[Site "Chess.com"]
[Date "2019.08.06"]
[Round "3"]
[White "Alopekos"]
[Black "albi1999"]
[Result "1-0"]
[WhiteElo "2500"]
[BlackElo "2471"]
[TimeControl "180+2"]
[EndTime "13:36:54 PDT"]
[Termination "Alopekos won by resignation"]

1. e4 {[%clk 0:03:01.9]} 1... e5 {[%clk 0:03:00.5]} 2. Nf3 {[%clk 0:03:03]} 2...
Nc6 {[%clk 0:02:59.8]} 3. Bb5 {[%clk 0:03:04.2]} 3... a6 {[%clk 0:02:57.4]} 4.
Ba4 {[%clk 0:03:05]} 4... Nf6 {[%clk 0:02:58.8]} 5. O-O {[%clk 0:03:06.1]} 5...
Be7 {[%clk 0:02:58.7]} 6. Re1 {[%clk 0:03:06.8]} 6... b5 {[%clk 0:02:59.5]} 7.
Bb3 {[%clk 0:03:08.1]} 7... d6 {[%clk 0:03:00.7]} 8. a4 {[%clk 0:03:08.7]} 8...
b4 {[%clk 0:03:00.3]} 9. c3 {[%clk 0:03:03]} 9... O-O {[%clk 0:03:00.1]} 10. a5
{[%clk 0:03:03.7]} 10... Rb8 {[%clk 0:02:45.7]} 11. d3 {[%clk 0:03:03.2]} 11...
Bg4 {[%clk 0:02:23.4]} 12. Nbd2 {[%clk 0:03:03.5]} 12... h6 {[%clk 0:02:21.3]}
13. h3 {[%clk 0:03:03.9]} 13... Be6 {[%clk 0:02:15.3]} 14. Bxe6 {[%clk 0:02:59]}
14... fxe6 {[%clk 0:02:17.2]} 15. Qa4 {[%clk 0:03:00.6]} 15... Qd7 {[%clk
0:02:17.5]} 16. Nc4 {[%clk 0:02:13.2]} 16... bxc3 {[%clk 0:01:55.1]} 17. bxc3
{[%clk 0:02:13.2]} 17... Nh5 {[%clk 0:01:50]} 18. d4 {[%clk 0:02:08.6]} 18...
exd4 {[%clk 0:01:48.7]} 19. Nxd4 {[%clk 0:02:08.3]} 19... Ne5 {[%clk 0:01:41.5]}
20. Qxd7 {[%clk 0:01:35.7]} 20... Nxd7 {[%clk 0:01:43.4]} 21. Nxe6 {[%clk
0:01:37.4]} 21... Rfc8 {[%clk 0:01:42.5]} 22. Bd2 {[%clk 0:01:30.9]} 22... Kf7
{[%clk 0:01:36.5]} 23. Nd4 {[%clk 0:01:30.6]} 23... c6 {[%clk 0:01:26.3]} 24.
Nf5 {[%clk 0:01:23.9]} 24... Ke6 {[%clk 0:01:26.2]} 25. g4 {[%clk 0:01:18.1]}
25... Nhf6 {[%clk 0:01:26.1]} 26. Nxg7+ {[%clk 0:01:17.9]} 26... Kf7 {[%clk
0:01:28]} 27. Nf5 {[%clk 0:01:18.5]} 27... Ne8 {[%clk 0:01:29.9]} 28. Bxh6
{[%clk 0:00:52.1]} 28... Ne5 {[%clk 0:01:25.9]} 29. Nxe5+ {[%clk 0:00:41.5]}
29... dxe5 {[%clk 0:01:27.8]} 30. Rab1 {[%clk 0:00:13.1]} 30... Bd8 {[%clk
0:01:26.3]} 31. f4 {[%clk 0:00:03.9]} 31... Bxa5 {[%clk 0:01:24.3]} 32. fxe5
{[%clk 0:00:03.4]} 32... Bxc3 {[%clk 0:01:24.1]} 33. Rxb8 {[%clk 0:00:04.2]}
33... Rxb8 {[%clk 0:01:23.5]} 34. Rc1 {[%clk 0:00:06.1]} 34... Rb3 {[%clk
0:01:18.9]} 35. Be3 {[%clk 0:00:04]} 35... Ke6 {[%clk 0:01:11.2]} 36. Bd4 {[%clk
0:00:05]} 36... Bb2 {[%clk 0:00:56.9]} 37. Rxc6+ {[%clk 0:00:03.6]} 37... Kd7
{[%clk 0:00:58.2]} 38. Rxa6 {[%clk 0:00:04.8]} 38... Bxd4+ {[%clk 0:00:55.6]}
39. Nxd4 {[%clk 0:00:05.9]} 39... Rb4 {[%clk 0:00:56.7]} 40. Ra7+ {[%clk
0:00:05.7]} 40... Kc8 {[%clk 0:00:57.7]} 41. Nc6 {[%clk 0:00:02.7]} 41... Rxe4
{[%clk 0:00:58.2]} 42. Rf7 {[%clk 0:00:03.3]} 42... Nc7 {[%clk 0:00:58.4]} 43.
g5 {[%clk 0:00:03.3]} 43... Ne6 {[%clk 0:00:59.4]} 44. g6 {[%clk 0:00:04.7]}
44... Re3 {[%clk 0:00:58.9]} 45. Kg2 {[%clk 0:00:03.4]} 45... Re2+ {[%clk
0:01:00.4]} 46. Kf3 {[%clk 0:00:04.1]} 46... Re1 {[%clk 0:01:01.5]} 47. Ne7+
{[%clk 0:00:05]} 47... Kd8 {[%clk 0:01:00.6]} 48. Nd5 {[%clk 0:00:06.1]} 48...
Ng5+ {[%clk 0:01:00.7]} 49. Kg4 {[%clk 0:00:05.3]} 49... Nxf7 {[%clk 0:01:01.3]}
50. gxf7 {[%clk 0:00:06.5]} 50... Rf1 {[%clk 0:01:02.1]} 51. e6 {[%clk
0:00:07.1]} 51... Kc8 {[%clk 0:01:02.1]} 52. Nf4 {[%clk 0:00:06.2]} 1-0